[Event "Titled Tuesday Blitz November 01 Late 2022"]
[White "Kekic, Armin"]
[Black "Lehtosaari, Mauri"]
[WhiteFideId "14401274"]
[BlackFideId "501999"]
[WhiteElo "2132"]
[BlackElo "2502"]
[Result "0-1"]
[Round "09"]
[TimeControl "180+1"]
[Date "2022.11.02"]
[WhiteClock "0:00:05"]
[BlackClock "0:00:15"]

1. e4 {[%clk 0:03:00]}  c5 {[%clk 0:02:53]} 2. Nf3 {[%clk 0:03:00]}  e6 {[%clk 0:02:53]} 3. c3 {[%clk 0:03:00]}  Nf6 {[%clk 0:02:52]} 4. Bd3 {[%clk 0:02:57]}  c4 {[%clk 0:02:42]} 5. Bxc4 {[%clk 0:02:55]}  Nxe4 {[%clk 0:02:42]} 6. O-O {[%clk 0:02:49]}  d5 {[%clk 0:02:41]} 7. Bb5+ {[%clk 0:02:47]}  Bd7 {[%clk 0:02:39]} 8. Bxd7+ {[%clk 0:02:46]}  Nxd7 {[%clk 0:02:39]} 9. d3 {[%clk 0:02:46]}  Nef6 {[%clk 0:02:38]} 10. Bg5 {[%clk 0:02:46]}  Be7 {[%clk 0:02:38]} 11. Re1 {[%clk 0:02:46]}  O-O {[%clk 0:02:37]} 12. Nbd2 {[%clk 0:02:46]}  Rc8 {[%clk 0:02:22]} 13. Nb3 {[%clk 0:02:40]}  h6 {[%clk 0:02:21]} 14. Bh4 {[%clk 0:02:40]}  Re8 {[%clk 0:02:18]} 15. Rc1 {[%clk 0:02:37]}  Qb6 {[%clk 0:02:14]} 16. Qe2 {[%clk 0:02:33]}  Qa6 {[%clk 0:02:12]} 17. a3 {[%clk 0:02:30]}  Qa4 {[%clk 0:02:07]} 18. Nbd4 {[%clk 0:02:26]}  a6 {[%clk 0:01:55]} 19. Qc2 {[%clk 0:02:18]}  Qxc2 {[%clk 0:01:49]} 20. Rxc2 {[%clk 0:02:17]}  Nc5 {[%clk 0:01:49]} 21. Rd1 {[%clk 0:02:09]}  Nfd7 {[%clk 0:01:31]} 22. Bxe7 {[%clk 0:02:07]}  Rxe7 {[%clk 0:01:32]} 23. Kf1 {[%clk 0:02:01]}  Nb6 {[%clk 0:01:24]} 24. Ke2 {[%clk 0:01:46]}  Rec7 {[%clk 0:01:24]} 25. Kd2 {[%clk 0:01:43]}  Ncd7 {[%clk 0:01:21]} 26. Re1 {[%clk 0:01:40]}  Nf6 {[%clk 0:01:21]} 27. Ne5 {[%clk 0:01:37]}  Nbd7 {[%clk 0:01:21]} 28. Ndf3 {[%clk 0:01:32]}  Nxe5 {[%clk 0:01:17]} 29. Nxe5 {[%clk 0:01:33]}  b5 {[%clk 0:01:16]} 30. h3 {[%clk 0:01:27]}  Kf8 {[%clk 0:01:10]} 31. g4 {[%clk 0:01:20]}  Nd7 {[%clk 0:01:01]} 32. Nxd7+ {[%clk 0:01:18]}  Rxd7 {[%clk 0:01:02]} 33. Ra1 {[%clk 0:01:14]}  Ke7 {[%clk 0:00:53]} 34. a4 {[%clk 0:01:14]}  Rcc7 {[%clk 0:00:50]} 35. axb5 {[%clk 0:01:14]}  axb5 {[%clk 0:00:51]} 36. f4 {[%clk 0:01:10]}  Ra7 {[%clk 0:00:50]} 37. Rcc1 {[%clk 0:01:09]}  Kd6 {[%clk 0:00:50]} 38. Ke3 {[%clk 0:01:07]}  Kc5 {[%clk 0:00:49]} 39. b4+ {[%clk 0:01:06]}  Kd6 {[%clk 0:00:49]} 40. Ra5 {[%clk 0:00:44]}  Rxa5 {[%clk 0:00:47]} 41. bxa5 {[%clk 0:00:45]}  Ra7 {[%clk 0:00:47]} 42. Ra1 {[%clk 0:00:45]}  Kc5 {[%clk 0:00:44]} 43. Ra2 {[%clk 0:00:36]}  f6 {[%clk 0:00:40]} 44. h4 {[%clk 0:00:29]}  e5 {[%clk 0:00:40]} 45. fxe5 {[%clk 0:00:29]}  fxe5 {[%clk 0:00:41]} 46. h5 {[%clk 0:00:27]}  d4+ {[%clk 0:00:40]} 47. cxd4+ {[%clk 0:00:25]}  exd4+ {[%clk 0:00:40]} 48. Ke4 {[%clk 0:00:25]}  b4 {[%clk 0:00:38]} 49. Rc2+ {[%clk 0:00:25]}  Kb5 {[%clk 0:00:38]} 50. Kxd4 {[%clk 0:00:25]}  b3 {[%clk 0:00:32]} 51. Rc8 {[%clk 0:00:22]}  Rxa5 {[%clk 0:00:27]} 52. Kc3 {[%clk 0:00:14]}  Ka4 {[%clk 0:00:26]} 53. d4 {[%clk 0:00:14]}  Ra7 {[%clk 0:00:25]} 54. d5 {[%clk 0:00:12]}  Ka3 {[%clk 0:00:25]} 55. Rb8 {[%clk 0:00:09]}  Rc7+ {[%clk 0:00:23]} 56. Kd4 {[%clk 0:00:10]}  Rc1 {[%clk 0:00:17]} 57. d6 {[%clk 0:00:10]}  Rg1 {[%clk 0:00:15]} 58. d7 {[%clk 0:00:09]}  Rd1+ {[%clk 0:00:15]} 59. Ke5 {[%clk 0:00:09]}  Rxd7 {[%clk 0:00:15]} 60. Kf5 {[%clk 0:00:09]}  Rc7 {[%clk 0:00:15]} 61. g5 {[%clk 0:00:06]}  Rc5+ {[%clk 0:00:15]} 62. Ke6 {[%clk 0:00:05]}  Rxg5 {[%clk 0:00:15]} 0-1


[Site "https://www.chess.com"]

[Event "Titled Tuesday Blitz November 01 Late 2022"]
[White "Leitao, Rafael"]
[Black "Hoffmann, Asa"]
[WhiteFideId "2101246"]
[BlackFideId "2001470"]
[WhiteElo "2609"]
[BlackElo "2117"]
[Result "1-0"]
[Round "09"]
[TimeControl "180+1"]
[Date "2022.11.02"]
[WhiteClock "0:00:20"]
[BlackClock "0:00:06"]

1. c4 {[%clk 0:02:42]}  Nf6 {[%clk 0:02:59]} 2. Nc3 {[%clk 0:02:42]}  d6 {[%clk 0:02:58]} 3. d4 {[%clk 0:02:40]}  Bf5 {[%clk 0:02:57]} 4. g3 {[%clk 0:02:36]}  c6 {[%clk 0:02:56]} 5. Bg2 {[%clk 0:02:35]}  Nbd7 {[%clk 0:02:56]} 6. e4 {[%clk 0:02:35]}  Bg6 {[%clk 0:02:55]} 7. Nge2 {[%clk 0:02:33]}  e5 {[%clk 0:02:55]} 8. O-O {[%clk 0:02:34]}  Be7 {[%clk 0:02:55]} 9. h3 {[%clk 0:02:30]}  O-O {[%clk 0:02:50]} 10. f4 {[%clk 0:02:30]}  exd4 {[%clk 0:02:45]} 11. Nxd4 {[%clk 0:02:24]}  h6 {[%clk 0:02:43]} 12. Kh2 {[%clk 0:02:22]}  Nc5 {[%clk 0:02:42]} 13. f5 {[%clk 0:02:20]}  Bh7 {[%clk 0:02:41]} 14. Bf4 {[%clk 0:02:19]}  a5 {[%clk 0:02:36]} 15. Nb3 {[%clk 0:02:10]}  b6 {[%clk 0:02:17]} 16. Nd4 {[%clk 0:02:05]}  Rc8 {[%clk 0:02:14]} 17. e5 {[%clk 0:02:02]}  dxe5 {[%clk 0:02:11]} 18. Bxe5 {[%clk 0:01:58]}  Nfd7 {[%clk 0:02:10]} 19. Bf4 {[%clk 0:01:49]}  Bf6 {[%clk 0:02:00]} 20. Nxc6 {[%clk 0:01:47]}  Rxc6 {[%clk 0:01:47]} 21. Bxc6 {[%clk 0:01:46]}  Re8 {[%clk 0:01:39]} 22. Nd5 {[%clk 0:01:36]}  Bxb2 {[%clk 0:01:29]} 23. Rb1 {[%clk 0:01:35]}  Be5 {[%clk 0:01:29]} 24. Bxe5 {[%clk 0:01:31]}  Rxe5 {[%clk 0:01:27]} 25. Nxb6 {[%clk 0:01:29]}  Bxf5 {[%clk 0:01:18]} 26. Rxf5 {[%clk 0:01:21]}  Rxf5 {[%clk 0:01:17]} 27. Nxd7 {[%clk 0:01:21]}  Qc7 {[%clk 0:01:01]} 28. Rb8+ {[%clk 0:01:16]}  Kh7 {[%clk 0:01:01]} 29. Nf8+ {[%clk 0:01:15]}  Kg8 {[%clk 0:00:50]} 30. Nd7+ {[%clk 0:00:36]}  Kh7 {[%clk 0:00:49]} 31. Qg4 {[%clk 0:00:30]}  Rg5 {[%clk 0:00:27]} 32. Nf8+ {[%clk 0:00:24]}  Kg8 {[%clk 0:00:26]} 33. Nd7+ {[%clk 0:00:23]}  Kh7 {[%clk 0:00:25]} 34. Be4+ {[%clk 0:00:22]}  Nxe4 {[%clk 0:00:16]} 35. Qxe4+ {[%clk 0:00:21]}  f5 {[%clk 0:00:16]} 36. Nf8+ {[%clk 0:00:20]}  Kh8 {[%clk 0:00:08]} 37. Ng6+ {[%clk 0:00:20]}  Kh7 {[%clk 0:00:06]} 38. Qf4 {[%clk 0:00:20]} 1-0


[Site "https://www.chess.com"]

[Event "Titled Tuesday Blitz November 01 Late 2022"]
[White "Li, Ben"]
[Black "Tayar, Jonathan"]
[WhiteFideId "2089980"]
[BlackFideId "2606534"]
[WhiteElo "2267"]
[BlackElo "2406"]
[Result "0-1"]
[Round "09"]
[TimeControl "180+1"]
[Date "2022.11.02"]
[WhiteClock "0:00:11"]
[BlackClock "0:00:08"]

1. d4 {[%clk 0:03:00]}  Nf6 {[%clk 0:02:58]} 2. c4 {[%clk 0:03:00]}  g6 {[%clk 0:02:55]} 3. Nc3 {[%clk 0:02:59]}  Bg7 {[%clk 0:02:54]} 4. e4 {[%clk 0:02:59]}  d6 {[%clk 0:02:53]} 5. Nf3 {[%clk 0:03:00]}  O-O {[%clk 0:02:51]} 6. h3 {[%clk 0:03:01]}  e5 {[%clk 0:02:50]} 7. d5 {[%clk 0:02:58]}  Na6 {[%clk 0:02:47]} 8. Bg5 {[%clk 0:02:58]}  h6 {[%clk 0:02:44]} 9. Be3 {[%clk 0:02:58]}  Nc5 {[%clk 0:02:42]} 10. Nd2 {[%clk 0:02:58]}  a5 {[%clk 0:02:41]} 11. Be2 {[%clk 0:02:57]}  c6 {[%clk 0:02:34]} 12. g4 {[%clk 0:02:57]}  Bd7 {[%clk 0:02:24]} 13. h4 {[%clk 0:02:56]}  a4 {[%clk 0:02:21]} 14. g5 {[%clk 0:02:38]}  hxg5 {[%clk 0:02:16]} 15. Bxg5 {[%clk 0:02:30]}  Qa5 {[%clk 0:02:07]} 16. h5 {[%clk 0:01:39]}  Nfxe4 {[%clk 0:01:47]} 17. Be3 {[%clk 0:01:21]}  a3 {[%clk 0:00:38]} 18. Ncxe4 {[%clk 0:01:13]}  Nxe4 {[%clk 0:00:36]} 19. b4 {[%clk 0:00:38]}  Qxb4 {[%clk 0:00:35]} 20. Rb1 {[%clk 0:00:37]}  Qa5 {[%clk 0:00:28]} 21. hxg6 {[%clk 0:00:37]}  fxg6 {[%clk 0:00:22]} 22. Bg4 {[%clk 0:00:28]}  Bf5 {[%clk 0:00:15]} 23. Bxf5 {[%clk 0:00:23]}  Rxf5 {[%clk 0:00:16]} 24. Qg4 {[%clk 0:00:23]}  Nxd2 {[%clk 0:00:12]} 25. Bxd2 {[%clk 0:00:23]}  Qc5 {[%clk 0:00:12]} 26. Be3 {[%clk 0:00:17]}  Qa5+ {[%clk 0:00:12]} 27. Ke2 {[%clk 0:00:16]}  Rf6 {[%clk 0:00:11]} 28. Rxb7 {[%clk 0:00:15]}  Raf8 {[%clk 0:00:10]} 29. Qd7 {[%clk 0:00:14]}  R6f7 {[%clk 0:00:09]} 30. Qe6 {[%clk 0:00:13]}  Qa4 {[%clk 0:00:08]} 31. Rxf7 {[%clk 0:00:12]}  Rxf7 {[%clk 0:00:07]} 32. Qe8+ {[%clk 0:00:11]}  Rf8 {[%clk 0:00:07]} 33. Qxc6 {[%clk 0:00:12]}  Qc2+ {[%clk 0:00:06]} 34. Kf1 {[%clk 0:00:10]}  Qd1+ {[%clk 0:00:06]} 35. Kg2 {[%clk 0:00:10]}  Qg4+ {[%clk 0:00:06]} 36. Kh2 {[%clk 0:00:11]}  Rf5 {[%clk 0:00:05]} 37. Qc8+ {[%clk 0:00:09]}  Kh7 {[%clk 0:00:04]} 38. Bg5 {[%clk 0:00:07]}  Qxg5 {[%clk 0:00:03]} 39. Rg1 {[%clk 0:00:04]}  Qh4+ {[%clk 0:00:03]} 40. Kg2 {[%clk 0:00:04]}  Qg4+ {[%clk 0:00:03]} 41. Kf1 {[%clk 0:00:04]}  Rxf2+ {[%clk 0:00:03]} 42. Kxf2 {[%clk 0:00:04]}  Qxc8 {[%clk 0:00:04]} 43. Rh1+ {[%clk 0:00:03]}  Bh6 {[%clk 0:00:05]} 44. Rc1 {[%clk 0:00:04]}  Qc5+ {[%clk 0:00:05]} 45. Ke2 {[%clk 0:00:04]}  Bxc1 {[%clk 0:00:05]} 46. Kd1 {[%clk 0:00:04]}  Bb2 {[%clk 0:00:06]} 47. Kc2 {[%clk 0:00:05]}  Qxc4+ {[%clk 0:00:06]} 48. Kd2 {[%clk 0:00:05]}  Qd4+ {[%clk 0:00:07]} 49. Ke2 {[%clk 0:00:06]}  Qc4+ {[%clk 0:00:06]} 50. Kf3 {[%clk 0:00:07]}  Qxa2 {[%clk 0:00:07]} 51. Kg4 {[%clk 0:00:08]}  Qxd5 {[%clk 0:00:07]} 52. Kg5 {[%clk 0:00:09]}  e4+ {[%clk 0:00:07]} 53. Kg4 {[%clk 0:00:09]}  Qf5+ {[%clk 0:00:08]} 54. Kg3 {[%clk 0:00:10]}  Be5+ {[%clk 0:00:08]} 55. Kh4 {[%clk 0:00:10]}  Qf4+ {[%clk 0:00:07]} 56. Kh3 {[%clk 0:00:11]}  Qg3# {[%clk 0:00:08]} 0-1


[Site "https://www.chess.com"]

[Event "Titled Tuesday Blitz November 01 Late 2022"]
[White "Manolache, Marius"]
[Black "Ramirez, Alejandro"]
[WhiteFideId "1201530"]
[BlackFideId "6500617"]
[WhiteElo "2364"]
[BlackElo "2694"]
[Result "1/2-1/2"]
[Round "09"]
[TimeControl "180+1"]
[Date "2022.11.01"]
[WhiteClock "0:00:13"]
[BlackClock "0:00:06"]

1. d4 {[%clk 0:03:00]}  Nf6 {[%clk 0:02:59]} 2. Bg5 {[%clk 0:02:59]}  c5 {[%clk 0:02:58]} 3. d5 {[%clk 0:02:58]}  d6 {[%clk 0:02:58]} 4. c4 {[%clk 0:02:56]}  e6 {[%clk 0:02:55]} 5. Nc3 {[%clk 0:02:55]}  Be7 {[%clk 0:02:55]} 6. Bf4 {[%clk 0:02:50]}  Qa5 {[%clk 0:02:48]} 7. Bd2 {[%clk 0:02:46]}  exd5 {[%clk 0:02:48]} 8. Nxd5 {[%clk 0:02:46]}  Qd8 {[%clk 0:02:48]} 9. Bc3 {[%clk 0:02:44]}  Nxd5 {[%clk 0:02:42]} 10. Qxd5 {[%clk 0:02:43]}  O-O {[%clk 0:02:42]} 11. e4 {[%clk 0:02:43]}  Nc6 {[%clk 0:02:40]} 12. Be2 {[%clk 0:02:41]}  Bf6 {[%clk 0:02:37]} 13. Qd2 {[%clk 0:02:37]}  Re8 {[%clk 0:02:35]} 14. Bd3 {[%clk 0:02:31]}  Bxc3 {[%clk 0:02:19]} 15. Qxc3 {[%clk 0:02:28]}  Qg5 {[%clk 0:02:19]} 16. Kf1 {[%clk 0:02:25]}  Nd4 {[%clk 0:02:02]} 17. Re1 {[%clk 0:02:17]}  f5 {[%clk 0:01:34]} 18. Ne2 {[%clk 0:02:10]}  Nxe2 {[%clk 0:01:15]} 19. Rxe2 {[%clk 0:02:09]}  fxe4 {[%clk 0:01:16]} 20. Bxe4 {[%clk 0:02:08]}  Bf5 {[%clk 0:01:15]} 21. Bd5+ {[%clk 0:01:49]}  Kh8 {[%clk 0:01:12]} 22. Re3 {[%clk 0:01:48]}  Bg6 {[%clk 0:00:58]} 23. h4 {[%clk 0:01:40]}  Qf5 {[%clk 0:00:58]} 24. Kg1 {[%clk 0:01:35]}  Rxe3 {[%clk 0:00:57]} 25. Qxe3 {[%clk 0:01:32]}  Re8 {[%clk 0:00:57]} 26. Qg3 {[%clk 0:01:32]}  Qb1+ {[%clk 0:00:50]} 27. Kh2 {[%clk 0:01:32]}  Qxb2 {[%clk 0:00:51]} 28. f3 {[%clk 0:01:10]}  Qd4 {[%clk 0:00:43]} 29. Re1 {[%clk 0:01:03]}  Rxe1 {[%clk 0:00:39]} 30. Qxe1 {[%clk 0:01:02]}  b6 {[%clk 0:00:38]} 31. Kh3 {[%clk 0:00:52]}  Qe5 {[%clk 0:00:33]} 32. Qd2 {[%clk 0:00:47]}  h5 {[%clk 0:00:30]} 33. g3 {[%clk 0:00:34]}  a6 {[%clk 0:00:24]} 34. f4 {[%clk 0:00:31]}  Qf5+ {[%clk 0:00:22]} 35. Kg2 {[%clk 0:00:30]}  Qc2 {[%clk 0:00:20]} 36. Qxc2 {[%clk 0:00:29]}  Bxc2 {[%clk 0:00:21]} 37. Bb7 {[%clk 0:00:26]}  a5 {[%clk 0:00:12]} 38. Kf3 {[%clk 0:00:25]}  Bb1 {[%clk 0:00:13]} 39. a3 {[%clk 0:00:25]}  Ba2 {[%clk 0:00:13]} 40. Ba6 {[%clk 0:00:25]}  d5 {[%clk 0:00:13]} 41. cxd5 {[%clk 0:00:25]}  Bxd5+ {[%clk 0:00:14]} 42. Ke3 {[%clk 0:00:26]}  g6 {[%clk 0:00:15]} 43. f5 {[%clk 0:00:25]}  Kg7 {[%clk 0:00:10]} 44. fxg6 {[%clk 0:00:24]}  Kxg6 {[%clk 0:00:11]} 45. Bd3+ {[%clk 0:00:23]}  Kf6 {[%clk 0:00:11]} 46. Be2 {[%clk 0:00:23]}  Bf7 {[%clk 0:00:12]} 47. Kf4 {[%clk 0:00:23]}  Be8 {[%clk 0:00:11]} 48. g4 {[%clk 0:00:21]}  hxg4 {[%clk 0:00:12]} 49. Kxg4 {[%clk 0:00:21]}  b5 {[%clk 0:00:10]} 50. Kf4 {[%clk 0:00:20]}  b4 {[%clk 0:00:08]} 51. axb4 {[%clk 0:00:19]}  axb4 {[%clk 0:00:09]} 52. Ke4 {[%clk 0:00:19]}  Bc6+ {[%clk 0:00:09]} 53. Ke3 {[%clk 0:00:18]}  Bd5 {[%clk 0:00:10]} 54. h5 {[%clk 0:00:17]}  c4 {[%clk 0:00:09]} 55. Kd4 {[%clk 0:00:17]}  c3 {[%clk 0:00:08]} 56. Bd3 {[%clk 0:00:16]}  Bf7 {[%clk 0:00:07]} 57. h6 {[%clk 0:00:16]}  Be6 {[%clk 0:00:05]} 58. Bc2 {[%clk 0:00:13]}  Bf7 {[%clk 0:00:04]} 59. Bd3 {[%clk 0:00:13]}  Bb3 {[%clk 0:00:04]} 60. Kc5 {[%clk 0:00:12]}  c2 {[%clk 0:00:04]} 61. Bxc2 {[%clk 0:00:12]}  Bxc2 {[%clk 0:00:05]} 62. Kxb4 {[%clk 0:00:13]}  Kg6 {[%clk 0:00:06]} 63. Kc3 {[%clk 0:00:13]}  Kxh6 {[%clk 0:00:06]} 1/2-1/2


[Site "https://www.chess.com"]

[Event "Titled Tuesday Blitz November 01 Late 2022"]
[White "Martinez Alcantara, Jose Eduardo"]
[Black "Svane, Rasmus"]
[WhiteFideId "3805662"]
[BlackFideId "4657101"]
[WhiteElo "3038"]
[BlackElo "2968"]
[Result "1-0"]
[Round "09"]
[TimeControl "180+1"]
[Date "2022.11.01"]
[WhiteClock "0:00:32"]
[BlackClock "0:00:01"]

1. e4 {[%clk 0:02:59]}  c6 {[%clk 0:03:00]} 2. d4 {[%clk 0:02:59]}  d5 {[%clk 0:03:01]} 3. e5 {[%clk 0:03:00]}  Bf5 {[%clk 0:03:02]} 4. h4 {[%clk 0:03:00]}  h5 {[%clk 0:03:02]} 5. Bd3 {[%clk 0:03:01]}  Bxd3 {[%clk 0:03:03]} 6. Qxd3 {[%clk 0:03:02]}  Qa5+ {[%clk 0:03:03]} 7. b4 {[%clk 0:02:57]}  Qa6 {[%clk 0:03:04]} 8. e6 {[%clk 0:02:58]}  Qxd3 {[%clk 0:03:04]} 9. cxd3 {[%clk 0:02:58]}  Nh6 {[%clk 0:03:04]} 10. Nf3 {[%clk 0:02:52]}  Na6 {[%clk 0:03:04]} 11. Bxh6 {[%clk 0:02:43]}  gxh6 {[%clk 0:02:43]} 12. exf7+ {[%clk 0:02:43]}  Kxf7 {[%clk 0:02:44]} 13. a3 {[%clk 0:02:17]}  Bg7 {[%clk 0:02:44]} 14. Nbd2 {[%clk 0:02:15]}  Nc7 {[%clk 0:02:43]} 15. Nb3 {[%clk 0:02:16]}  Rhe8 {[%clk 0:02:24]} 16. Kd2 {[%clk 0:02:15]}  e5 {[%clk 0:02:22]} 17. dxe5 {[%clk 0:02:15]}  Bxe5 {[%clk 0:02:23]} 18. Nxe5+ {[%clk 0:02:06]}  Rxe5 {[%clk 0:02:24]} 19. Rae1 {[%clk 0:02:04]}  Rf5 {[%clk 0:01:51]} 20. Rhf1 {[%clk 0:01:58]}  Nb5 {[%clk 0:01:45]} 21. a4 {[%clk 0:01:52]}  Nd6 {[%clk 0:01:45]} 22. g3 {[%clk 0:01:52]}  Re8 {[%clk 0:01:34]} 23. Rxe8 {[%clk 0:01:52]}  Kxe8 {[%clk 0:01:28]} 24. Nd4 {[%clk 0:01:52]}  Rf6 {[%clk 0:01:22]} 25. Ne2 {[%clk 0:01:46]}  Kd7 {[%clk 0:01:00]} 26. Nf4 {[%clk 0:01:44]}  Rf5 {[%clk 0:01:01]} 27. Re1 {[%clk 0:01:37]}  d4 {[%clk 0:00:59]} 28. Rc1 {[%clk 0:01:24]}  a5 {[%clk 0:00:54]} 29. Rb1 {[%clk 0:01:15]}  axb4 {[%clk 0:00:44]} 30. Rxb4 {[%clk 0:01:16]}  c5 {[%clk 0:00:45]} 31. Rb1 {[%clk 0:01:14]}  Re5 {[%clk 0:00:28]} 32. Ng6 {[%clk 0:01:04]}  Re8 {[%clk 0:00:26]} 33. Rc1 {[%clk 0:00:57]}  Kc6 {[%clk 0:00:24]} 34. Rb1 {[%clk 0:00:51]}  b5 {[%clk 0:00:20]} 35. axb5+ {[%clk 0:00:50]}  Nxb5 {[%clk 0:00:21]} 36. Ra1 {[%clk 0:00:48]}  Nc3 {[%clk 0:00:20]} 37. Nf4 {[%clk 0:00:49]}  Rb8 {[%clk 0:00:16]} 38. Kc2 {[%clk 0:00:48]}  Re8 {[%clk 0:00:08]} 39. Ra6+ {[%clk 0:00:47]}  Kb5 {[%clk 0:00:09]} 40. Rxh6 {[%clk 0:00:45]}  Ra8 {[%clk 0:00:09]} 41. Rxh5 {[%clk 0:00:41]}  Ra2+ {[%clk 0:00:09]} 42. Kb3 {[%clk 0:00:40]}  Rxf2 {[%clk 0:00:06]} 43. Ne6 {[%clk 0:00:40]}  Kb6 {[%clk 0:00:02]} 44. Nxc5 {[%clk 0:00:38]}  Rf1 {[%clk 0:00:02]} 45. Kc4 {[%clk 0:00:37]}  Rb1 {[%clk 0:00:02]} 46. Rh6+ {[%clk 0:00:35]}  Kc7 {[%clk 0:00:03]} 47. Ne6+ {[%clk 0:00:36]}  Kd7 {[%clk 0:00:02]} 48. Nxd4 {[%clk 0:00:36]}  Rc1 {[%clk 0:00:03]} 49. Nb3 {[%clk 0:00:34]}  Rc2 {[%clk 0:00:03]} 50. Nc5+ {[%clk 0:00:33]}  Ke7 {[%clk 0:00:03]} 51. d4 {[%clk 0:00:31]}  Rc1 {[%clk 0:00:02]} 52. Nb3 {[%clk 0:00:31]}  Rc2 {[%clk 0:00:01]} 53. Kd3 {[%clk 0:00:32]}  Rg2 {[%clk 0:00:01]} 54. Kxc3 {[%clk 0:00:31]}  Rxg3+ {[%clk 0:00:01]} 55. Kc4 {[%clk 0:00:32]} 1-0


[Site "https://www.chess.com"]

[Event "Titled Tuesday Blitz November 01 Late 2022"]
[White "McConnell, Griffin"]
[Black "Boidiya, Sidi"]
[WhiteFideId "30942551"]
[BlackFideId "19600100"]
[WhiteElo "2334"]
[BlackElo "2113"]
[Result "0-1"]
[Round "09"]
[TimeControl "180+1"]
[Date "2022.11.02"]
[WhiteClock "0:00:20"]
[BlackClock "0:00:48"]

1. e4 {[%clk 0:03:00]}  c5 {[%clk 0:02:54]} 2. Nc3 {[%clk 0:03:01]}  e6 {[%clk 0:02:53]} 3. Nge2 {[%clk 0:02:59]}  Nf6 {[%clk 0:02:52]} 4. d3 {[%clk 0:02:59]}  d5 {[%clk 0:02:52]} 5. Bg5 {[%clk 0:02:57]}  dxe4 {[%clk 0:02:49]} 6. dxe4 {[%clk 0:02:54]}  Qxd1+ {[%clk 0:02:50]} 7. Rxd1 {[%clk 0:02:52]}  a6 {[%clk 0:02:49]} 8. f3 {[%clk 0:02:45]}  Nc6 {[%clk 0:02:46]} 9. a3 {[%clk 0:02:43]}  Be7 {[%clk 0:02:45]} 10. Be3 {[%clk 0:02:40]}  b6 {[%clk 0:02:40]} 11. g4 {[%clk 0:02:40]}  Bb7 {[%clk 0:02:38]} 12. Bg2 {[%clk 0:02:38]}  Rd8 {[%clk 0:02:36]} 13. Kf2 {[%clk 0:02:37]}  O-O {[%clk 0:02:34]} 14. Rxd8 {[%clk 0:02:27]}  Rxd8 {[%clk 0:02:32]} 15. Rd1 {[%clk 0:02:27]}  Kf8 {[%clk 0:02:30]} 16. Rxd8+ {[%clk 0:02:23]}  Bxd8 {[%clk 0:02:31]} 17. h3 {[%clk 0:02:22]}  Ke8 {[%clk 0:02:31]} 18. f4 {[%clk 0:02:20]}  e5 {[%clk 0:02:30]} 19. f5 {[%clk 0:02:10]}  h6 {[%clk 0:02:29]} 20. Kg3 {[%clk 0:02:00]}  Nd4 {[%clk 0:02:26]} 21. Bxd4 {[%clk 0:01:53]}  cxd4 {[%clk 0:02:27]} 22. Nd5 {[%clk 0:01:48]}  Nxd5 {[%clk 0:02:23]} 23. exd5 {[%clk 0:01:48]}  Bg5 {[%clk 0:02:21]} 24. h4 {[%clk 0:01:36]}  Bd2 {[%clk 0:02:18]} 25. c4 {[%clk 0:01:11]}  b5 {[%clk 0:02:14]} 26. b3 {[%clk 0:01:06]}  Kd7 {[%clk 0:02:08]} 27. Kf3 {[%clk 0:01:00]}  Kd6 {[%clk 0:02:04]} 28. Ke4 {[%clk 0:00:59]}  a5 {[%clk 0:02:00]} 29. Kd3 {[%clk 0:00:54]}  Be1 {[%clk 0:01:53]} 30. h5 {[%clk 0:00:49]}  a4 {[%clk 0:01:49]} 31. Nc1 {[%clk 0:00:41]}  axb3 {[%clk 0:01:42]} 32. c5+ {[%clk 0:00:36]}  Kxc5 {[%clk 0:01:37]} 33. Nxb3+ {[%clk 0:00:37]}  Kd6 {[%clk 0:01:37]} 34. Ke2 {[%clk 0:00:37]}  Bc3 {[%clk 0:01:33]} 35. g5 {[%clk 0:00:30]}  f6 {[%clk 0:01:29]} 36. gxh6 {[%clk 0:00:20]}  gxh6 {[%clk 0:01:30]} 37. Nc1 {[%clk 0:00:19]}  Bxd5 {[%clk 0:01:24]} 38. Bh3 {[%clk 0:00:17]}  e4 {[%clk 0:01:22]} 39. Bg4 {[%clk 0:00:16]}  Ke5 {[%clk 0:01:22]} 40. Kd1 {[%clk 0:00:16]}  Kf4 {[%clk 0:01:20]} 41. Be2 {[%clk 0:00:17]}  Bc4 {[%clk 0:01:16]} 42. Bxc4 {[%clk 0:00:16]}  bxc4 {[%clk 0:01:17]} 43. Ne2+ {[%clk 0:00:16]}  Kxf5 {[%clk 0:00:52]} 44. Nxc3 {[%clk 0:00:16]}  dxc3 {[%clk 0:00:53]} 45. Kc2 {[%clk 0:00:17]}  e3 {[%clk 0:00:50]} 46. Kxc3 {[%clk 0:00:16]}  Ke5 {[%clk 0:00:50]} 47. a4 {[%clk 0:00:16]}  Kd5 {[%clk 0:00:50]} 48. a5 {[%clk 0:00:15]}  Kc5 {[%clk 0:00:50]} 49. Kc2 {[%clk 0:00:16]}  f5 {[%clk 0:00:50]} 50. Kd1 {[%clk 0:00:17]}  f4 {[%clk 0:00:49]} 51. Ke2 {[%clk 0:00:18]}  Kb5 {[%clk 0:00:49]} 52. a6 {[%clk 0:00:19]}  Kxa6 {[%clk 0:00:49]} 53. Kd1 {[%clk 0:00:20]}  f3 {[%clk 0:00:48]} 0-1


[Site "https://www.chess.com"]